[Event "Ostravsky Konik-A 2019"]
[Site "Ostrava"]
[Date "2019.05.05"]
[Round "9.2"]
[White "Nehyba, Martin"]
[Black "Sernecki, Franciszek"]
[Result "1-0"]
[ECO "D32"]
[WhiteElo "2113"]
[BlackElo "2259"]
[Annotator "NA"]
[PlyCount "135"]
[EventDate "2019.04.27"]
[EventType "swiss"]
[EventCountry "CZE"]
[SourceTitle "playchess.com"]
[Source "ChessBase"]
[SourceQuality "1"]
[TimeControl "40/5400+30:1800+30"]

1. d4 {[%emt 0:00:00]} d5 {[%emt 0:00:02]} 2. c4 {[%emt 0:00:00]} e6 {[%emt 0:00:06]} 3. Nc3 {[%emt 0:00:00]} c5 {[%emt 0:00:15]} 4. cxd5 {[%emt 0:00:11]} exd5 {[%emt 0:00:04]} 5. Nf3 {[%emt 0:00:12]} Nc6 {[%emt 0:00:09]} 6. Bg5 {[%emt 0:16:56]} Be7 {[%emt 0:00:25]} 7. Bxe7 {[%emt 0:00:43]} Ngxe7 {[%emt 0:00:09]} 8. e3 {[%emt 0:02:24]} c4 {[%emt 0:11:37]} 9. Be2 {[%emt 0:04:00]} O-O {[%emt 0:05:10] D32: Tarrasch Defence: Sidelines and lines without g3} 10. O-O {[%emt 0:00:57]} Bf5 {[%emt 0:09:18]} (10... Rb8 11. a4 a6 12. Ne5 Be6 13. Nxc6 bxc6 14. Qd2 a5 15. f3 Rb4 16. Na2 Rb7 17. Rab1 {0-1 (63) Wang,Y (2736)-Akobian,V (2606) Beijing 2008}) 11. b3 {[%emt 0:04:13]} Qa5 {[%emt 0:19:15]} 12. Qe1 $146 {[%emt 0:20:05]} ({Predecessor:} 12. Qd2 b5 13. bxc4 bxc4 14. Nh4 Be6 15. Rfb1 Rab8 16. Rxb8 Rxb8 17. Rb1 Rxb1+ 18. Nxb1 {½-½ (35) Nachbar,B (2133)-Fiebig,T (2379) Germany 2013}) 12... b5 {[%emt 0:07:40]} 13. Ne5 {[%emt 0:09:56]} b4 {[%emt 0:06:43]} 14. Nxc6 {[%emt 0:00:06]} Nxc6 {[%emt 0:00:04]} 15. Na4 {[%emt 0:00:05]} Rfe8 {[%emt 0:07:48]} 16. Qd1 {[%emt 0:01:42]} c3 {[%emt 0:02:04]} 17. Bd3 {[%emt 0:00:28]} Bxd3 {[%emt 0:01:23]} 18. Qxd3 {[%emt 0:00:00]} Qc7 {[%emt 0:08:27]} 19. Qb5 {[%emt 0:04:49]} Qd6 {[%emt 0:01:52]} 20. Qa6 {[%emt 0:08:47]} Re6 {[%emt 0:07:45]} 21. Rfe1 {[%emt 0:05:56]} Nd8 {[%emt 0:02:52]} 22. Qxd6 {[%emt 0:03:36]} Rxd6 {[%emt 0:00:01]} 23. a3 {[%emt 0:00:00]} Nc6 {[%emt 0:06:13]} 24. axb4 {[%emt 0:05:26]} Nxb4 {[%emt 0:00:05]} 25. Rec1 {[%emt 0:00:04]} c2 {[%emt 0:00:27]} 26. Nc5 {[%emt 0:00:02]} a5 {[%emt 0:01:24]} 27. Kf1 {[%emt 0:00:36]} Kf8 {[%emt 0:01:06]} 28. Ke2 {[%emt 0:00:18]} Rh6 {[%emt 0:00:34]} 29. h3 {[%emt 0:00:17]} Rg6 {[%emt 0:00:20]} 30. g3 {[%emt 0:00:04]} Rc6 {[%emt 0:00:45]} 31. Nd3 {[%emt 0:08:24]} Rb6 {[%emt 0:00:37]} 32. Nxb4 {[%emt 0:00:35]} Rxb4 {[%emt 0:00:03]} 33. Ra3 {[%emt 0:00:05]} a4 {[%emt 0:01:03]} 34. bxa4 {[%emt 0:00:20]} ({And not} 34. Rxc2 Rxb3 35. Rca2 Rb4 $11) 34... Raxa4 {[%emt 0:00:20]} 35. Rxa4 {[%emt 0:00:05]} Rxa4 36. Rxc2 {[%emt 0:00:08]} Ke7 {[%emt 0:00:18]} 37. Rc6 {[%emt 0:01:34]} Ra2+ {[%emt 0:00:29]} 38. Kf3 {[%emt 0:00:05]} Rb2 {[%emt 0:00:47]} 39. Ra6 {[%emt 0:00:08]} Rc2 {[%emt 0:00:37]} 40. Rb6 {[%emt 0:03:24]} Ra2 {[%emt 0:00:21]} 41. g4 {[%emt 0:05:31]} h6 {[%emt 0:00:53]} 42. Kg3 {[%emt 0:00:08]} Re2 {[%emt 0:01:05]} 43. Rb3 {[%emt 0:00:16]} Kd6 {[%emt 0:05:28]} 44. h4 {[%emt 0:00:31]} Ke6 {[%emt 0:03:02]} (44... Ra2 {was called for.} 45. Rb7 Ke6) 45. h5 $18 {[%emt 0:03:31]} Kf6 {[%emt 0:02:26]} 46. f4 {[%emt 0:00:37]} Re1 {[%emt 0:00:59]} 47. Kf2 {[%emt 0:00:33]} Rh1 {[%emt 0:07:00]} 48. Rb5 {[%emt 0:06:07]} Ke6 {[%emt 0:00:14]} 49. Ra5 {[%emt 0:00:15]} Rh3 {[%emt 0:03:54]} 50. Rb5 {[%emt 0:01:17]} Rh1 {[%emt 0:01:29]} 51. f5+ {[%emt 0:00:57]} Kf6 {[%emt 0:00:44]} 52. Rxd5 {[%emt 0:00:08]} Kg5 {[%emt 0:00:06]} 53. Rd7 {[%emt 0:03:43]} Kxg4 {[%emt 0:00:29]} 54. Rxf7 {[%emt 0:00:12]} Rh2+ {[%emt 0:01:26]} 55. Kg1 {[%emt 0:00:17]} Re2 {[%emt 0:02:43]} 56. Rxg7+ {[%emt 0:00:08]} Kxf5 {[%emt 0:00:20]} 57. Re7 {[%emt 0:00:39]} Kg4 {[%emt 0:00:32]} 58. Kf1 {[%emt 0:00:08]} Rh2 {[%emt 0:01:03]} 59. Re5 {[%emt 0:00:34]} Kf3 {[%emt 0:00:50]} 60. Ke1 {[%emt 0:00:08]} Re2+ {[%emt 0:00:34]} 61. Kd1 {[%emt 0:00:04]} Ra2 {[%emt 0:00:24]} 62. d5 {[%emt 0:00:37]} Rb2 {[%emt 0:01:49]} 63. d6 {[%emt 0:00:56]} Rb6 {[%emt 0:00:30]} 64. Rd5 {[%emt 0:00:10]} Rb8 {[%emt 0:00:05]} 65. d7 {[%emt 0:00:59]} Rd8 {[%emt 0:00:01]} 66. Kd2 {[%emt 0:00:09]} Ke4 {[%emt 0:00:02]} 67. Rd4+ {[%emt 0:00:08]} Ke5 {[%emt 0:00:18]} 68. Kd3 {[%emt 0:00:06]} 1-0

[Event "Ostravsky Konik-A 2019"]
[Site "Ostrava"]
[Date "2019.05.05"]
[Round "9.3"]
[White "Gnojek, Petr"]
[Black "Frank, Adam"]
[Result "0-1"]
[ECO "A41"]
[WhiteElo "2016"]
[BlackElo "2015"]
[Annotator "NA RC"]
[PlyCount "116"]
[EventDate "2019.04.27"]
[EventType "swiss"]
[EventCountry "CZE"]
[SourceTitle "playchess.com"]
[Source "ChessBase"]
[SourceQuality "1"]
[TimeControl "40/5400+30:1800+30"]

1. d4 d6 2. e4 Nf6 3. f3 g6 4. c4 Nbd7 5. Nc3 e5 6. Nge2 Bg7 7. Be3 {E80: King's Indian: Sämisch: Lines without early ...0-0} exd4 (7... c6 8. Qd2 Qe7 9. d5 O-O 10. O-O-O cxd5 11. cxd5 a6 12. g4 b5 13. h4 h5 14. Bh3 hxg4 15. Bxg4 Nxg4 16. fxg4 {0-1 (31) Wojtaszek,R (2734)-Petrosian,T (2625) Berlin 2015}) 8. Nxd4 O-O 9. Be2 Ne5 10. O-O Be6 11. Nd5 $146 ({Predecessor:} 11. Nxe6 fxe6 12. Qb3 b6 13. c5 dxc5 14. Qxe6+ Nf7 15. Rfd1 Qe8 16. Qb3 Kh8 {1-0 (28) Lichmann,P (2160)-Forchmann,G (1577) Winterberg 2002}) 11... c6 12. Nxe6 fxe6 13. Nxf6+ Bxf6 14. f4 Nf7 15. g4 e5 16. f5 Bg5 17. Qd2 Bxe3+ 18. Qxe3 Qb6 19. c5 Qxc5 20. Qxc5 dxc5 21. Bc4 g5 $11 22. Rad1 Rfd8 23. h4 h6 24. hxg5 hxg5 25. Kf2 Rd4 26. Rxd4 cxd4 27. Rh1 Rd8 28. Ke2 c5 29. a4 Rd7 30. Kd3 b6 31. Rh6 Kf8 32. Rf6 Rc7 33. Rg6 Rd7 34. b3 Rc7 35. Bd5 Rd7 36. Bxf7 Rxf7 37. Rxg5 Rg7 38. Rh5 Rxg4 39. Rh3 Kf7 40. Rh7+ Rg7 41. Rh4 Kf6 42. Rh6+ Kg5 43. Rh1 a6 44. Kc4 Rd7 45. Rg1+ Kf4 46. Kd3 Kf3 47. f6 Kf2 48. Rg5 Rf7 49. Rxe5 Kg3 50. Rf5 Kg4 51. Kc4 b5+ 52. axb5 axb5+ 53. Kxc5 d3 54. Rf1 d2 55. e5 Rc7+ 56. Kxb5 Rc1 57. Rf4+ Kxf4 58. f7 Rc8 0-1

[Event "Ostravsky Konik-A 2019"]
[Site "Ostrava"]
[Date "2019.05.05"]
[Round "9.5"]
[White "Orzechowski, Jacek"]
[Black "Stalmach, Richard"]
[Result "0-1"]
[ECO "A10"]
[WhiteElo "2139"]
[BlackElo "1991"]
[Annotator "NA RC"]
[PlyCount "64"]
[EventDate "2019.04.27"]
[EventType "swiss"]
[EventCountry "CZE"]
[SourceTitle "playchess.com"]
[Source "ChessBase"]
[SourceQuality "1"]
[TimeControl "40/5400+30:1800+30"]

1. c4 {[%emt 0:00:00]} f5 {[%emt 0:00:00]} 2. g3 {[%emt 0:00:18]} Nf6 {[%emt 0:00:00]} 3. Bg2 {[%emt 0:00:07]} g6 {[%emt 0:00:00]} 4. Nc3 {[%emt 0:00:29]} Bg7 {[%emt 0:00:00]} 5. d3 {[%emt 0:00:13]} O-O {[%emt 0:00:01]} 6. e4 {[%emt 0:00:24] A10: English Opening: Unusual Replies for Black} e6 {[%emt 0:08:48]} (6... d6 7. Nge2 fxe4 8. dxe4 c5 9. O-O Nc6 10. h3 Be6 11. b3 Qd7 12. Kh2 a6 13. Be3 Ne8 14. Rc1 Nc7 15. Nd5 Rad8 16. f4 {½-½ (44) Howell,D (2693)-L'Ami,E (2623) Reykjavik 2015}) 7. Nge2 {[%emt 0:02:08]} d6 {[%emt 0:10:47]} 8. O-O {[%emt 0:04:27]} c6 {[%emt 0:02:39]} 9. h3 {[%emt 0:07:22]} e5 {[%emt 0:07:00]} 10. Bg5 $146 {[%emt 0:21:47]} ({Predecessor:} 10. exf5 gxf5 11. Be3 Nh5 12. f4 Qe8 13. Qd2 Qg6 {1-0 (41) Franco Ocampos,Z (2510)-Lipiniks,L (2180) Asuncion 2002}) 10... h6 {[%emt 0:04:13]} 11. Be3 {[%emt 0:02:27]} g5 {[%emt 0:07:06]} 12. exf5 {[%emt 0:09:14]} Bxf5 {[%emt 0:00:16]} 13. f4 {[%emt 0:08:18]} exf4 {[%emt 0:08:31]} 14. gxf4 {[%emt 0:03:44]} Qe8 {[%emt 0:14:44]} 15. Qd2 {[%emt 0:00:30]} g4 {[%emt 0:02:45]} 16. Ng3 {[%emt 0:06:15]} Qg6 {[%emt 0:10:00]} 17. Nxf5 {[%emt 0:01:44]} Qxf5 {[%emt 0:00:21]} 18. Ne4 gxh3 {[%emt 0:01:44]} 19. Nxf6+ {[%emt 0:10:33]} Rxf6 {[%emt 0:01:59]} 20. Bf3 {[%emt 0:04:45]} Nd7 {[%emt 0:01:04]} 21. Kh1 {[%emt 0:01:02]} Re8 {[%emt 0:01:54]} 22. Rg1 {[%emt 0:02:23]} Ne5 {[%emt 0:03:58]} 23. Be2 {[%emt 0:04:53]} Nxc4 {[%emt 0:00:38]} 24. dxc4 {[%emt 0:03:12]} Qe4+ {[%emt 0:00:06]} 25. Kh2 {[%emt 0:00:15]} Qxe3 {[%emt 0:00:03]} 26. Qxe3 $19 {[%emt 0:02:00]} Rxe3 {[%emt 0:00:04]} 27. Bh5 {[%emt 0:01:33]} Rxf4 {[%emt 0:00:14]} 28. Rg6 {[%emt 0:01:16]} Rf2+ {[%emt 0:03:51]} 29. Kh1 {[%emt 0:00:17]} Rf6 {[%emt 0:00:11]} 30. Rg4 {[%emt 0:00:43]} h2 {[%emt 0:02:09]} 31. Kxh2 {[%emt 0:01:29]} Re5 {[%emt 0:00:04]} 32. Bg6 {[%emt 0:00:21]} Rg5 {[%emt 0:00:12]} 0-1

[Event "Ostravsky Konik-A 2019"]
[Site "Ostrava"]
[Date "2019.05.05"]
[Round "9.6"]
[White "Krajina, Ales"]
[Black "Shilov, Sergej"]
[Result "1-0"]
[ECO "A00"]
[WhiteElo "2119"]
[BlackElo "2158"]
[Annotator "NA"]
[PlyCount "123"]
[EventDate "2019.04.27"]
[EventType "swiss"]
[EventCountry "CZE"]
[SourceTitle "playchess.com"]
[Source "ChessBase"]
[SourceQuality "1"]
[TimeControl "40/5400+30:1800+30"]

1. h4 {[%emt 0:02:00]} e5 {[%emt 0:00:11]} 2. h5 {[%emt 0:00:10]} d5 {[%emt 0:00:33]} 3. c3 {[%emt 0:00:14]} c5 {[%emt 0:06:02]} 4. d4 {[%emt 0:00:16]} exd4 {[%emt 0:00:15]} 5. cxd4 {[%emt 0:00:10]} cxd4 {[%emt 0:00:02]} 6. Nf3 {[%emt 0:00:14]} Nc6 {[%emt 0:00:13]} 7. Nxd4 {[%emt 0:01:03]} Bc5 {[%emt 0:00:17]} 8. e3 {[%emt 0:00:24]} h6 {[%emt 0:01:10]} 9. Nc3 {[%emt 0:00:23]} Nf6 {[%emt 0:00:13]} 10. Be2 {[%emt 0:00:08]} Bb6 {[%emt 0:04:04]} 11. Bf3 {[%emt 0:04:22]} O-O {[%emt 0:11:23]} 12. Nxc6 {[%emt 0:25:11]} bxc6 {[%emt 0:00:40]} 13. O-O {[%emt 0:02:31]} Bf5 {[%emt 0:05:31]} 14. Qa4 {[%emt 0:01:31]} Qd6 {[%emt 0:02:44]} 15. Rd1 {[%emt 0:02:49]} Rfe8 {[%emt 0:05:33]} 16. b3 {[%emt 0:14:49]} Bc7 {[%emt 0:17:47]} 17. Qh4 {[%emt 0:03:18]} Rab8 {[%emt 0:01:09]} 18. g3 {[%emt 0:13:30]} Bd8 {[%emt 0:07:03]} 19. Qf4 {[%emt 0:03:28]} Qxf4 {[%emt 0:04:24]} 20. gxf4 {[%emt 0:00:31]} Bg4 {[%emt 0:00:15]} 21. Bxg4 {[%emt 0:01:07]} Nxg4 {[%emt 0:00:01]} 22. Kg2 {[%emt 0:00:44]} Nf6 {[%emt 0:03:21]} 23. Rh1 {[%emt 0:00:22]} c5 {[%emt 0:00:36]} 24. Na4 {[%emt 0:05:25]} Rc8 {[%emt 0:02:53]} 25. Bb2 {[%emt 0:00:43]} Ne4 {[%emt 0:07:10]} 26. Rad1 {[%emt 0:02:27]} d4 {[%emt 0:00:40]} 27. f3 {[%emt 0:01:16]} Nc3 {[%emt 0:02:15]} 28. Bxc3 {[%emt 0:01:07]} dxc3 {[%emt 0:00:02]} 29. e4 {[%emt 0:00:11]} Ba5 {[%emt 0:00:40]} 30. a3 {[%emt 0:03:36]} Red8 {[%emt 0:03:57]} 31. Kf2 {[%emt 0:00:35]} Rd4 {[%emt 0:02:55]} 32. Ke2 {[%emt 0:02:23]} Rcd8 {[%emt 0:04:18]} 33. Rxd4 {[%emt 0:01:26]} Rxd4 {[%emt 0:00:41]} 34. Rc1 {[%emt 0:00:40]} Rd2+ {[%emt 0:00:41]} 35. Ke3 {[%emt 0:00:14]} Ra2 {[%emt 0:01:01]} 36. Kd3 {[%emt 0:01:46]} Rxa3 {[%emt 0:03:13]} 37. Kc4 {[%emt 0:00:14]} Ra2 {[%emt 0:00:35]} 38. Nxc5 {[%emt 0:00:58]} Rh2 {[%emt 0:01:37]} 39. b4 {[%emt 0:00:29]} Bb6 {[%emt 0:00:39]} (39... Bc7 $11) 40. Rxc3 {[%emt 0:01:22]} Rxh5 {[%emt 0:00:43]} 41. f5 {[%emt 0:30:51]} Rh1 {[%emt 0:03:18]} 42. Nd7 {[%emt 0:00:00]} Bf2 {[%emt 0:02:59]} (42... Bd8 $11 {keeps the balance.}) 43. f4 {[%emt 0:00:00]} (43. Kb5 $16 f6 44. Rc2) 43... Rd1 $11 {[%emt 0:02:45]} 44. Rd3 {[%emt 0:00:00]} Rc1+ {[%emt 0:01:11]} 45. Kd5 {[%emt 0:00:00]} Rb1 {[%emt 0:00:51]} 46. Rf3 {[%emt 0:00:00]} Bh4 {[%emt 0:02:28]} 47. Ra3 {[%emt 0:00:00]} Bf2 {[%emt 0:04:36]} 48. Ra2 {[%emt 0:00:26]} Be3 {[%emt 0:01:31]} 49. Ra3 {[%emt 0:00:36]} Bf2 {[%emt 0:04:04]} 50. Ra2 {[%emt 0:00:02]} Rd1+ {[%emt 0:04:22]} 51. Kc6 {[%emt 0:00:04]} Rf1 {[%emt 0:00:38]} 52. Nc5 {[%emt 0:00:14]} h5 {[%emt 0:00:42]} 53. Rxa7 {[%emt 0:01:43]} h4 {[%emt 0:00:06]} 54. Ra3 {[%emt 0:00:11]} Bg3 {[%emt 0:01:48]} 55. e5 {[%emt 0:01:15]} Bxf4 {[%emt 0:01:10]} 56. e6 {[%emt 0:00:03]} fxe6 {[%emt 0:00:22]} 57. fxe6 {[%emt 0:00:09]} Re1 {[%emt 0:00:42]} 58. Kd7 {[%emt 0:01:25]} Bg5 {[%emt 0:00:58]} 59. b5 {[%emt 0:00:29]} Rd1+ {[%emt 0:00:20]} 60. Rd3 {[%emt 0:03:29]} Re1 {[%emt 0:05:57]} 61. b6 {[%emt 0:00:34]} Rb1 {[%emt 0:00:24]} 62. Nb3 {[%emt 0:00:15]} 1-0

[Event "Ostravsky Konik-A 2019"]
[Site "Ostrava"]
[Date "2019.05.05"]
[Round "9.7"]
[White "Matras, Ondrej"]
[Black "Kalinowska, Zuzanna"]
[Result "0-1"]
[ECO "E16"]
[WhiteElo "2221"]
[BlackElo "2046"]
[Annotator "NA"]
[PlyCount "160"]
[EventDate "2019.04.27"]
[EventType "swiss"]
[EventCountry "CZE"]
[SourceTitle "playchess.com"]
[Source "ChessBase"]
[SourceQuality "1"]
[TimeControl "40/5400+30:1800+30"]

1. d4 {[%emt 0:00:00]} Nf6 {[%emt 0:00:00]} 2. c4 {[%emt 0:00:00]} e6 {[%emt 0:00:00]} 3. Nf3 {[%emt 0:00:08]} Bb4+ {[%emt 0:00:00]} 4. Bd2 {[%emt 0:00:03]} Qe7 {[%emt 0:00:05]} 5. g3 {[%emt 0:00:26]} O-O {[%emt 0:00:23]} 6. Bg2 {[%emt 0:00:03]} Bxd2+ {[%emt 0:00:09]} 7. Qxd2 {[%emt 0:00:28]} d6 {[%emt 0:00:59]} 8. Nc3 {[%emt 0:01:14]} Nc6 {[%emt 0:04:04]} 9. O-O {[%emt 0:01:24]} a5 {[%emt 0:01:59]} 10. e4 {[%emt 0:14:16]} e5 {[%emt 0:03:26]} 11. d5 {[%emt 0:00:40]} Nb8 {[%emt 0:00:51]} 12. Ne1 {[%emt 0:01:04]} Na6 {[%emt 0:04:13]} 13. Nd3 {[%emt 0:03:03] E11: Bogo-Indian} c6 {[%emt 0:04:19]} (13... Nd7 14. b3 Ndc5 15. Rab1 f5 16. Nxc5 Nxc5 17. Rfe1 f4 18. gxf4 Rxf4 19. f3 Bd7 20. Ne2 Rf6 {0-1 (38) Kiselev,V (2539)-Bachmann,A (2562) ICC INT 2009}) 14. f4 {[%emt 0:02:24]} Nd7 {[%emt 0:03:54]} 15. Rad1 $146 {[%emt 0:08:16]} ({Predecessor:} 15. f5 f6 16. g4 Nb6 17. b3 cxd5 18. exd5 Nd7 19. Ne4 b6 20. h4 Ndc5 21. Ndxc5 Nxc5 22. Nxc5 {½-½ (22) Marchlewicz,K (2008)-Baturo,T (2112) Leba 2008}) 15... Rd8 {[%emt 0:06:50]} 16. Qf2 {[%emt 0:03:56]} f6 {[%emt 0:03:58]} 17. f5 {[%emt 0:14:37]} Ndc5 {[%emt 0:06:18]} 18. g4 {[%emt 0:00:20]} Rb8 {[%emt 0:22:50]} 19. h4 {[%emt 0:02:39]} Bd7 {[%emt 0:00:50]} 20. Kh2 {[%emt 0:01:58]} Be8 {[%emt 0:05:54]} 21. Rg1 {[%emt 0:02:05]} Bf7 {[%emt 0:01:24]} 22. Bf3 {[%emt 0:04:40]} cxd5 {[%emt 0:01:07]} 23. cxd5 {[%emt 0:03:46]} b5 {[%emt 0:01:42]} 24. g5 {[%emt 0:01:39]} Be8 {[%emt 0:02:02]} 25. Nxc5 {[%emt 0:08:51]} Nxc5 {[%emt 0:00:13]} 26. Qe3 {[%emt 0:00:11]} b4 {[%emt 0:02:02]} 27. Ne2 {[%emt 0:00:53]} Na4 {[%emt 0:01:41]} 28. b3 {[%emt 0:03:52]} Nc5 {[%emt 0:00:40]} 29. Rg2 {[%emt 0:01:17]} a4 {[%emt 0:01:31]} 30. Rdg1 {[%emt 0:00:16]} Rb7 {[%emt 0:00:58]} 31. Ng3 {[%emt 0:06:53]} axb3 {[%emt 0:02:29]} 32. axb3 {[%emt 0:00:11]} Ra8 {[%emt 0:00:20]} 33. Bh5 {[%emt 0:01:30]} Bb5 {[%emt 0:01:08]} 34. Bd1 {[%emt 0:02:24]} Be8 $1 {[%emt 0:00:31]} 35. Nh1 {[%emt 0:01:39]} fxg5 {[%emt 0:09:44]} 36. hxg5 {[%emt 0:00:42]} Qd8 {[%emt 0:01:55]} 37. Nf2 {[%emt 0:00:56]} Ra2 {[%emt 0:01:47]} 38. Ng4 {[%emt 0:01:14]} Rba7 {[%emt 0:01:23]} (38... Rxg2+ $11 39. Rxg2 Rc7) 39. Kh1 {[%emt 0:06:31]} Rxg2 {[%emt 0:00:50]} 40. Rxg2 {[%emt 0:00:01]} Ra1 {[%emt 0:00:54]} 41. Rg1 {[%emt 0:30:19]} Nd7 {[%emt 0:05:48]} 42. f6 {[%emt 0:00:00]} Bg6 {[%emt 0:01:41]} 43. Qf3 $2 {[%emt 0:00:00]} (43. fxg7 $11 {and White has nothing to worry.} Kxg7 44. Nh6) 43... Nc5 $19 {[%emt 0:01:29]} 44. fxg7 {[%emt 0:00:00]} Kxg7 {[%emt 0:03:09]} 45. Nf6 {[%emt 0:00:00]} Nd7 {[%emt 0:06:55]} 46. Nh5+ {[%emt 0:00:00]} Kg8 {[%emt 0:01:27]} 47. Qg4 {[%emt 0:00:00]} Qe7 {[%emt 0:12:17]} 48. Ng3 {[%emt 0:00:56]} Nc5 {[%emt 0:01:52]} 49. Kh2 {[%emt 0:02:32]} Ra2+ {[%emt 0:00:28]} 50. Rg2 {[%emt 0:00:46]} Rxg2+ {[%emt 0:00:22]} 51. Kxg2 {[%emt 0:00:01]} Qf7 {[%emt 0:00:38]} 52. Bf3 {[%emt 0:02:15]} Nxb3 {[%emt 0:00:32]} 53. Qc8+ {[%emt 0:00:01]} Qf8 {[%emt 0:00:44]} 54. Qe6+ {[%emt 0:01:10]} Kh8 {[%emt 0:01:00]} 55. Bh5 {[%emt 0:02:15]} Nd4 {[%emt 0:00:46]} 56. Qg4 {[%emt 0:00:32]} b3 {[%emt 0:01:18]} 57. Bxg6 {[%emt 0:00:38]} hxg6 {[%emt 0:00:13]} 58. Nf5 {[%emt 0:00:27]} Nxf5 {[%emt 0:00:30]} 59. exf5 {[%emt 0:00:12]} Qxf5 {[%emt 0:00:14]} 60. Qb4 {[%emt 0:00:48]} Qxg5+ {[%emt 0:00:36]} 61. Kh3 {[%emt 0:00:13]} Qf5+ {[%emt 0:00:53]} 62. Kg2 {[%emt 0:00:08]} Qc2+ {[%emt 0:00:17]} 63. Kh3 {[%emt 0:00:08]} Qd3+ {[%emt 0:00:28]} 64. Kh2 {[%emt 0:00:31]} Qxd5 {[%emt 0:01:15]} 65. Qh4+ {[%emt 0:00:25]} Kg7 {[%emt 0:00:36]} 66. Qe7+ {[%emt 0:00:02]} Qf7 {[%emt 0:00:17]} 67. Qxd6 {[%emt 0:00:02]} Qf4+ {[%emt 0:00:17]} 68. Kg2 {[%emt 0:00:39]} b2 {[%emt 0:00:40]} 69. Qe7+ {[%emt 0:00:46]} Kh6 {[%emt 0:00:21]} 70. Qb7 {[%emt 0:00:15]} Qc1 {[%emt 0:00:37]} 71. Qe4 {[%emt 0:00:32]} Qg5+ {[%emt 0:01:02]} 72. Kh1 {[%emt 0:00:19]} Qf4 {[%emt 0:00:39]} 73. Qd3 {[%emt 0:01:06]} Kg5 {[%emt 0:00:39]} 74. Kg2 {[%emt 0:00:47]} Qd4 {[%emt 0:00:39]} 75. Qc2 {[%emt 0:00:59]} Kf4 {[%emt 0:00:23]} 76. Kh2 {[%emt 0:01:00]} g5 {[%emt 0:00:43]} 77. Kh3 {[%emt 0:00:44]} Qe3+ {[%emt 0:00:26]} 78. Kh2 {[%emt 0:00:02]} Qg3+ {[%emt 0:00:12]} 79. Kh1 {[%emt 0:00:02]} Qe1+ {[%emt 0:00:13]} 80. Kg2 {[%emt 0:00:04]} Qe4+ {[%emt 0:00:07]} 0-1